[Event "Titled Tuesday Blitz October 11 Early 2022"]
[White "Kazakov, Mikhail"]
[Black "Aldokhin, Ivan"]
[WhiteFideId "14102749"]
[BlackFideId "24115720"]
[WhiteElo "2413"]
[BlackElo "2313"]
[Result "0-1"]
[Round "07"]
[TimeControl "180+1"]
[Date "2022.10.12"]
[WhiteClock "0:00:08"]
[BlackClock "0:00:23"]

1. d4 {[%clk 0:02:49]}  Nf6 {[%clk 0:02:59]} 2. c4 {[%clk 0:02:48]}  g6 {[%clk 0:03:00]} 3. Nc3 {[%clk 0:02:47]}  Bg7 {[%clk 0:03:00]} 4. e4 {[%clk 0:02:46]}  d6 {[%clk 0:03:01]} 5. Nf3 {[%clk 0:02:43]}  O-O {[%clk 0:03:02]} 6. Be2 {[%clk 0:02:43]}  Nc6 {[%clk 0:03:02]} 7. O-O {[%clk 0:02:40]}  Re8 {[%clk 0:03:03]} 8. d5 {[%clk 0:02:40]}  Nb4 {[%clk 0:03:03]} 9. a3 {[%clk 0:02:38]}  Na6 {[%clk 0:03:03]} 10. Rb1 {[%clk 0:02:34]}  e6 {[%clk 0:03:04]} 11. b4 {[%clk 0:02:30]}  exd5 {[%clk 0:03:03]} 12. exd5 {[%clk 0:02:30]}  Nb8 {[%clk 0:02:48]} 13. Bb2 {[%clk 0:02:24]}  Nbd7 {[%clk 0:02:43]} 14. h3 {[%clk 0:02:22]}  Nh5 {[%clk 0:02:36]} 15. Re1 {[%clk 0:02:21]}  Ndf6 {[%clk 0:02:15]} 16. Bf1 {[%clk 0:02:15]}  Bf5 {[%clk 0:02:15]} 17. Qd2 {[%clk 0:02:11]}  Bxb1 {[%clk 0:01:56]} 18. Rxb1 {[%clk 0:01:45]}  Ne4 {[%clk 0:01:52]} 19. Nxe4 {[%clk 0:01:42]}  Rxe4 {[%clk 0:01:53]} 20. Bxg7 {[%clk 0:01:30]}  Kxg7 {[%clk 0:01:52]} 21. Nd4 {[%clk 0:01:23]}  Qf6 {[%clk 0:01:45]} 22. Nb5 {[%clk 0:01:16]}  Qe7 {[%clk 0:01:44]} 23. Qc3+ {[%clk 0:01:08]}  Kg8 {[%clk 0:01:36]} 24. c5 {[%clk 0:00:46]}  a6 {[%clk 0:01:35]} 25. Nd4 {[%clk 0:00:40]}  Qe5 {[%clk 0:01:31]} 26. Rd1 {[%clk 0:00:39]}  Nf4 {[%clk 0:01:23]} 27. Qc4 {[%clk 0:00:19]}  Nxd5 {[%clk 0:01:07]} 28. Nf3 {[%clk 0:00:18]}  Rxc4 {[%clk 0:00:56]} 29. Nxe5 {[%clk 0:00:18]}  Rc3 {[%clk 0:00:50]} 30. cxd6 {[%clk 0:00:12]}  cxd6 {[%clk 0:00:50]} 31. Nc4 {[%clk 0:00:13]}  Nf4 {[%clk 0:00:40]} 32. Rxd6 {[%clk 0:00:13]}  Rc1 {[%clk 0:00:37]} 33. g3 {[%clk 0:00:12]}  Nxh3+ {[%clk 0:00:31]} 34. Kg2 {[%clk 0:00:12]}  Ng5 {[%clk 0:00:32]} 35. Rd7 {[%clk 0:00:12]}  b5 {[%clk 0:00:30]} 36. Ne5 {[%clk 0:00:10]}  Re8 {[%clk 0:00:28]} 37. f4 {[%clk 0:00:09]}  Rc2+ {[%clk 0:00:25]} 38. Kg1 {[%clk 0:00:08]}  Rxe5 {[%clk 0:00:24]} 39. fxg5 {[%clk 0:00:08]}  Rxg5 {[%clk 0:00:23]} 0-1


[Site "https://www.chess.com"]

[Event "Titled Tuesday Blitz October 11 Early 2022"]
[White "Kovalenko, Igor"]
[Black "Carlsen, Magnus"]
[WhiteFideId "14117908"]
[BlackFideId "1503014"]
[WhiteElo "2574"]
[BlackElo "2830"]
[Result "0-1"]
[Round "07"]
[TimeControl "180+1"]
[Date "2022.10.11"]
[WhiteClock "0:00:03"]
[BlackClock "0:00:23"]

1. c4 {[%clk 0:02:59]}  g5 {[%clk 0:02:58]} 2. d4 {[%clk 0:02:58]}  h6 {[%clk 0:02:58]} 3. Nc3 {[%clk 0:02:58]}  Bg7 {[%clk 0:02:58]} 4. e4 {[%clk 0:02:58]}  d6 {[%clk 0:02:58]} 5. Nge2 {[%clk 0:02:58]}  Nc6 {[%clk 0:02:56]} 6. Be3 {[%clk 0:02:58]}  a6 {[%clk 0:02:19]} 7. Ng3 {[%clk 0:02:57]}  Nf6 {[%clk 0:02:17]} 8. Be2 {[%clk 0:02:56]}  e5 {[%clk 0:02:00]} 9. d5 {[%clk 0:02:56]}  Nd4 {[%clk 0:02:00]} 10. Bxd4 {[%clk 0:02:51]}  exd4 {[%clk 0:01:59]} 11. Qxd4 {[%clk 0:02:52]}  Nh5 {[%clk 0:01:51]} 12. Qd2 {[%clk 0:02:42]}  Nf4 {[%clk 0:01:50]} 13. Rg1 {[%clk 0:02:40]}  Be5 {[%clk 0:01:44]} 14. h3 {[%clk 0:02:29]}  h5 {[%clk 0:01:39]} 15. a4 {[%clk 0:02:25]}  Qf6 {[%clk 0:01:38]} 16. Ra3 {[%clk 0:02:24]}  Bd7 {[%clk 0:01:36]} 17. a5 {[%clk 0:02:23]}  O-O-O {[%clk 0:01:29]} 18. b4 {[%clk 0:02:09]}  Bd4 {[%clk 0:01:28]} 19. Nd1 {[%clk 0:01:51]}  Rde8 {[%clk 0:01:15]} 20. Rf3 {[%clk 0:01:48]}  h4 {[%clk 0:01:11]} 21. Nh5 {[%clk 0:01:29]}  Rxh5 {[%clk 0:01:06]} 22. Rxf4 {[%clk 0:01:29]}  gxf4 {[%clk 0:01:03]} 23. Bxh5 {[%clk 0:01:30]}  Rxe4+ {[%clk 0:01:03]} 24. Kf1 {[%clk 0:01:27]}  Ba7 {[%clk 0:00:56]} 25. Be2 {[%clk 0:01:22]}  f3 {[%clk 0:00:49]} 26. gxf3 {[%clk 0:01:13]}  Bxh3+ {[%clk 0:00:48]} 27. Ke1 {[%clk 0:01:13]}  Re8 {[%clk 0:00:43]} 28. Ne3 {[%clk 0:01:00]}  Bd4 {[%clk 0:00:42]} 29. Kd1 {[%clk 0:00:44]}  Bc3 {[%clk 0:00:41]} 30. Qc2 {[%clk 0:00:44]}  Bxb4 {[%clk 0:00:41]} 31. Bd3 {[%clk 0:00:41]}  Qxf3+ {[%clk 0:00:35]} 32. Kc1 {[%clk 0:00:41]}  Bc5 {[%clk 0:00:35]} 33. Kb1 {[%clk 0:00:33]}  Kb8 {[%clk 0:00:33]} 34. Nd1 {[%clk 0:00:15]}  Bd7 {[%clk 0:00:30]} 35. Qd2 {[%clk 0:00:08]}  Bb4 {[%clk 0:00:23]} 36. Qc2 {[%clk 0:00:03]}  Bxa5 {[%clk 0:00:23]} 0-1


[Site "https://www.chess.com"]

[Event "Titled Tuesday Blitz October 11 Early 2022"]
[White "Koziorowicz, Michal"]
[Black "Di Nicolantonio, Lucas"]
[WhiteFideId "21809194"]
[BlackFideId "680460"]
[WhiteElo "2220"]
[BlackElo "2381"]
[Result "1-0"]
[Round "07"]
[TimeControl "180+1"]
[Date "2022.10.12"]
[WhiteClock "0:00:37"]
[BlackClock "0:00:07"]

1. Nc3 {[%clk 0:03:00]}  d5 {[%clk 0:02:51]} 2. d4 {[%clk 0:02:59]}  Nf6 {[%clk 0:02:49]} 3. Bg5 {[%clk 0:02:59]}  Nbd7 {[%clk 0:02:48]} 4. Qd3 {[%clk 0:02:57]}  c5 {[%clk 0:02:42]} 5. O-O-O {[%clk 0:02:51]}  c4 {[%clk 0:02:43]} 6. Qd2 {[%clk 0:02:49]}  b5 {[%clk 0:02:37]} 7. e4 {[%clk 0:02:31]}  Nxe4 {[%clk 0:02:34]} 8. Nxe4 {[%clk 0:02:31]}  dxe4 {[%clk 0:02:34]} 9. d5 {[%clk 0:02:26]}  h6 {[%clk 0:02:26]} 10. Bh4 {[%clk 0:02:23]}  g5 {[%clk 0:02:20]} 11. Bg3 {[%clk 0:02:20]}  Bg7 {[%clk 0:02:21]} 12. h4 {[%clk 0:02:21]}  c3 {[%clk 0:02:10]} 13. Qe3 {[%clk 0:02:11]}  Qa5 {[%clk 0:02:06]} 14. Kb1 {[%clk 0:02:00]}  Qb4 {[%clk 0:01:58]} 15. b3 {[%clk 0:02:00]}  a5 {[%clk 0:01:44]} 16. Ne2 {[%clk 0:01:04]}  a4 {[%clk 0:01:43]} 17. Rd4 {[%clk 0:01:03]}  Qa3 {[%clk 0:01:23]} 18. Nxc3 {[%clk 0:00:59]}  axb3 {[%clk 0:01:19]} 19. cxb3 {[%clk 0:01:00]}  b4 {[%clk 0:01:00]} 20. Na4 {[%clk 0:01:00]}  Rxa4 {[%clk 0:00:27]} 21. bxa4 {[%clk 0:01:01]}  b3 {[%clk 0:00:27]} 22. axb3 {[%clk 0:00:57]}  Bxd4 {[%clk 0:00:25]} 23. Qxd4 {[%clk 0:00:58]}  Qxb3+ {[%clk 0:00:26]} 24. Kc1 {[%clk 0:00:53]}  Qa3+ {[%clk 0:00:18]} 25. Qb2 {[%clk 0:00:49]}  Qc5+ {[%clk 0:00:17]} 26. Qc2 {[%clk 0:00:47]}  Qa3+ {[%clk 0:00:17]} 27. Kb1 {[%clk 0:00:45]}  O-O {[%clk 0:00:17]} 28. Bb5 {[%clk 0:00:43]}  Nb6 {[%clk 0:00:16]} 29. Qb2 {[%clk 0:00:41]}  Qc5 {[%clk 0:00:14]} 30. hxg5 {[%clk 0:00:40]}  Bf5 {[%clk 0:00:14]} 31. gxh6 {[%clk 0:00:37]}  e3+ {[%clk 0:00:14]} 32. Ka1 {[%clk 0:00:38]}  Bh7 {[%clk 0:00:07]} 33. Qg7# {[%clk 0:00:37]} 1-0


[Site "https://www.chess.com"]

[Event "Titled Tuesday Blitz October 11 Early 2022"]
[White "Kuznetsova, Olga"]
[Black "Liu, Xiangyi"]
[WhiteFideId "4191323"]
[BlackFideId "8605718"]
[WhiteElo "2134"]
[BlackElo "2323"]
[Result "1/2-1/2"]
[Round "07"]
[TimeControl "180+1"]
[Date "2022.10.12"]
[WhiteClock "0:00:07"]
[BlackClock "0:00:08"]

1. d4 {[%clk 0:02:57]}  Nf6 {[%clk 0:02:59]} 2. g3 {[%clk 0:02:57]}  g6 {[%clk 0:02:58]} 3. Bg2 {[%clk 0:02:58]}  d5 {[%clk 0:02:58]} 4. Nf3 {[%clk 0:02:58]}  Bg7 {[%clk 0:02:56]} 5. O-O {[%clk 0:02:58]}  O-O {[%clk 0:02:56]} 6. b3 {[%clk 0:02:54]}  c5 {[%clk 0:02:53]} 7. Bb2 {[%clk 0:02:54]}  Ne4 {[%clk 0:02:53]} 8. Ne5 {[%clk 0:02:47]}  Nc6 {[%clk 0:02:49]} 9. Nxc6 {[%clk 0:02:43]}  bxc6 {[%clk 0:02:50]} 10. Nd2 {[%clk 0:02:38]}  f5 {[%clk 0:02:39]} 11. Nf3 {[%clk 0:02:34]}  Qc7 {[%clk 0:02:34]} 12. Rc1 {[%clk 0:02:27]}  cxd4 {[%clk 0:02:27]} 13. Bxd4 {[%clk 0:02:26]}  e5 {[%clk 0:02:27]} 14. Ba1 {[%clk 0:02:26]}  Be6 {[%clk 0:02:26]} 15. e3 {[%clk 0:02:11]}  Rad8 {[%clk 0:02:24]} 16. Qe2 {[%clk 0:02:11]}  g5 {[%clk 0:02:16]} 17. Nd2 {[%clk 0:02:00]}  Qa5 {[%clk 0:01:32]} 18. Nxe4 {[%clk 0:01:39]}  dxe4 {[%clk 0:01:18]} 19. c3 {[%clk 0:01:36]}  Rd3 {[%clk 0:01:16]} 20. Rfd1 {[%clk 0:01:19]}  Rfd8 {[%clk 0:01:15]} 21. Qc2 {[%clk 0:01:15]}  Rxd1+ {[%clk 0:00:49]} 22. Rxd1 {[%clk 0:01:15]}  Rxd1+ {[%clk 0:00:50]} 23. Qxd1 {[%clk 0:01:15]}  Qxa2 {[%clk 0:00:50]} 24. c4 {[%clk 0:01:08]}  Qa5 {[%clk 0:00:43]} 25. Bh3 {[%clk 0:01:03]}  g4 {[%clk 0:00:43]} 26. Bf1 {[%clk 0:01:03]}  Kf7 {[%clk 0:00:42]} 27. Bb2 {[%clk 0:01:00]}  Qb4 {[%clk 0:00:35]} 28. Qd8 {[%clk 0:00:49]}  Qb6 {[%clk 0:00:30]} 29. Qa8 {[%clk 0:00:43]}  Bf6 {[%clk 0:00:22]} 30. Ba3 {[%clk 0:00:40]}  Kg6 {[%clk 0:00:20]} 31. Bd6 {[%clk 0:00:16]}  c5 {[%clk 0:00:19]} 32. Qb8 {[%clk 0:00:15]}  Kf7 {[%clk 0:00:15]} 33. Qxb6 {[%clk 0:00:14]}  axb6 {[%clk 0:00:15]} 34. Bc7 {[%clk 0:00:15]}  Ke7 {[%clk 0:00:14]} 35. Bxb6 {[%clk 0:00:15]}  Kd6 {[%clk 0:00:15]} 36. Ba5 {[%clk 0:00:16]}  Kc6 {[%clk 0:00:15]} 37. Bc3 {[%clk 0:00:16]}  h5 {[%clk 0:00:13]} 38. Be2 {[%clk 0:00:17]}  Bc8 {[%clk 0:00:12]} 39. Kf1 {[%clk 0:00:17]}  Kd6 {[%clk 0:00:13]} 40. Ke1 {[%clk 0:00:17]}  Bd8 {[%clk 0:00:14]} 41. Kd2 {[%clk 0:00:17]}  Bb6 {[%clk 0:00:14]} 42. Kc2 {[%clk 0:00:17]}  Bb7 {[%clk 0:00:15]} 43. Kb2 {[%clk 0:00:18]}  Ke6 {[%clk 0:00:15]} 44. Ka3 {[%clk 0:00:18]}  f4 {[%clk 0:00:15]} 45. b4 {[%clk 0:00:16]}  fxe3 {[%clk 0:00:13]} 46. fxe3 {[%clk 0:00:17]}  cxb4+ {[%clk 0:00:13]} 47. Kxb4 {[%clk 0:00:16]}  Bxe3 {[%clk 0:00:14]} 48. c5 {[%clk 0:00:16]}  Bd5 {[%clk 0:00:13]} 49. Ba6 {[%clk 0:00:11]}  Bd4 {[%clk 0:00:12]} 50. Be1 {[%clk 0:00:11]}  Kd7 {[%clk 0:00:12]} 51. Kb5 {[%clk 0:00:10]}  Bc6+ {[%clk 0:00:11]} 52. Kb6 {[%clk 0:00:10]}  e3 {[%clk 0:00:12]} 53. Bd3 {[%clk 0:00:09]}  e4 {[%clk 0:00:10]} 54. Bc4 {[%clk 0:00:09]}  e2 {[%clk 0:00:08]} 55. Bxe2 {[%clk 0:00:09]}  Bg1 {[%clk 0:00:09]} 56. Bc4 {[%clk 0:00:07]}  Ba8 {[%clk 0:00:09]} 57. Bf7 {[%clk 0:00:07]}  Bxh2 {[%clk 0:00:08]} 58. Bxh5 {[%clk 0:00:07]}  Ke6 {[%clk 0:00:08]} 59. Bxg4+ {[%clk 0:00:07]}  Ke5 {[%clk 0:00:09]} 60. c6 {[%clk 0:00:07]}  Bxc6 {[%clk 0:00:09]} 61. Kxc6 {[%clk 0:00:08]}  Kd4 {[%clk 0:00:09]} 62. Kd6 {[%clk 0:00:08]}  Ke3 {[%clk 0:00:09]} 63. Ke5 {[%clk 0:00:08]}  Kd3 {[%clk 0:00:08]} 64. Bf5 {[%clk 0:00:09]}  Ke2 {[%clk 0:00:08]} 65. Kxe4 {[%clk 0:00:06]}  Kxe1 {[%clk 0:00:08]} 66. Kf3 {[%clk 0:00:07]}  Bxg3 {[%clk 0:00:08]} 1/2-1/2


[Site "https://www.chess.com"]

[Event "Titled Tuesday Blitz October 11 Early 2022"]
[White "Le, Tuan Minh"]
[Black "Hansen, Eric"]
[WhiteFideId "12401153"]
[BlackFideId "2606771"]
[WhiteElo "2530"]
[BlackElo "2568"]
[Result "0-1"]
[Round "07"]
[TimeControl "180+1"]
[Date "2022.10.11"]
[WhiteClock "0:00:10"]
[BlackClock "0:00:31"]

1. d4 {[%clk 0:03:00]}  Nf6 {[%clk 0:02:54]} 2. Nf3 {[%clk 0:03:01]}  d5 {[%clk 0:02:50]} 3. Bf4 {[%clk 0:03:01]}  Bg4 {[%clk 0:02:48]} 4. e3 {[%clk 0:02:56]}  e6 {[%clk 0:02:44]} 5. c4 {[%clk 0:02:57]}  Bxf3 {[%clk 0:02:42]} 6. gxf3 {[%clk 0:02:56]}  Bd6 {[%clk 0:02:41]} 7. Bg3 {[%clk 0:02:54]}  O-O {[%clk 0:02:40]} 8. Nc3 {[%clk 0:02:55]}  c6 {[%clk 0:02:39]} 9. Bd3 {[%clk 0:02:55]}  Qe7 {[%clk 0:02:35]} 10. f4 {[%clk 0:02:53]}  dxc4 {[%clk 0:02:31]} 11. Bxc4 {[%clk 0:02:54]}  c5 {[%clk 0:02:30]} 12. dxc5 {[%clk 0:02:48]}  Bxc5 {[%clk 0:02:30]} 13. Bh4 {[%clk 0:02:44]}  Bb4 {[%clk 0:02:29]} 14. O-O {[%clk 0:02:35]}  Rc8 {[%clk 0:02:23]} 15. Bb3 {[%clk 0:02:01]}  Bxc3 {[%clk 0:02:22]} 16. bxc3 {[%clk 0:02:02]}  Nbd7 {[%clk 0:02:23]} 17. Kh1 {[%clk 0:01:59]}  Rxc3 {[%clk 0:02:15]} 18. Rg1 {[%clk 0:01:56]}  Qc5 {[%clk 0:02:15]} 19. Ba4 {[%clk 0:01:21]}  b5 {[%clk 0:02:08]} 20. Qf3 {[%clk 0:01:21]}  Rc8 {[%clk 0:01:57]} 21. Bb3 {[%clk 0:01:19]}  Qc6 {[%clk 0:01:55]} 22. Qxc6 {[%clk 0:01:16]}  R3xc6 {[%clk 0:01:55]} 23. Rad1 {[%clk 0:01:17]}  Kf8 {[%clk 0:01:49]} 24. Rd4 {[%clk 0:00:58]}  Nc5 {[%clk 0:01:48]} 25. Bd1 {[%clk 0:00:58]}  Nce4 {[%clk 0:01:35]} 26. Bf3 {[%clk 0:00:33]}  Rc4 {[%clk 0:01:27]} 27. Rgd1 {[%clk 0:00:25]}  Rxd4 {[%clk 0:01:14]} 28. Rxd4 {[%clk 0:00:26]}  Nc3 {[%clk 0:01:14]} 29. a3 {[%clk 0:00:26]}  a5 {[%clk 0:01:08]} 30. f5 {[%clk 0:00:20]}  e5 {[%clk 0:00:48]} 31. Rd6 {[%clk 0:00:16]}  e4 {[%clk 0:00:48]} 32. Bxf6 {[%clk 0:00:15]}  exf3 {[%clk 0:00:41]} 33. Bxc3 {[%clk 0:00:09]}  Rxc3 {[%clk 0:00:41]} 34. h4 {[%clk 0:00:10]}  Rxa3 {[%clk 0:00:41]} 35. Rb6 {[%clk 0:00:10]}  b4 {[%clk 0:00:36]} 36. Kh2 {[%clk 0:00:11]}  b3 {[%clk 0:00:33]} 37. e4 {[%clk 0:00:11]}  f6 {[%clk 0:00:33]} 38. Kg3 {[%clk 0:00:11]}  a4 {[%clk 0:00:33]} 39. Rb8+ {[%clk 0:00:09]}  Ke7 {[%clk 0:00:31]} 40. h5 {[%clk 0:00:10]}  h6 {[%clk 0:00:31]} 0-1


[Site "https://www.chess.com"]

[Event "Titled Tuesday Blitz October 11 Early 2022"]
[White "Machidon, Cristi"]
[Black "Amgalantengis, Enkh-Amgalan"]
[WhiteFideId "13904590"]
[BlackFideId "4903536"]
[WhiteElo "2312"]
[BlackElo "1772"]
[Result "1-0"]
[Round "07"]
[TimeControl "180+1"]
[Date "2022.10.12"]
[WhiteClock "0:00:40"]
[BlackClock "0:00:39"]

1. d4 {[%clk 0:03:00]}  d5 {[%clk 0:02:59]} 2. c4 {[%clk 0:03:01]}  c6 {[%clk 0:02:59]} 3. Nc3 {[%clk 0:03:01]}  Nf6 {[%clk 0:02:59]} 4. Nf3 {[%clk 0:03:01]}  e6 {[%clk 0:02:59]} 5. Bg5 {[%clk 0:03:00]}  h6 {[%clk 0:02:57]} 6. Bxf6 {[%clk 0:03:00]}  Qxf6 {[%clk 0:02:57]} 7. e3 {[%clk 0:03:00]}  Nd7 {[%clk 0:02:55]} 8. Qc2 {[%clk 0:03:00]}  g6 {[%clk 0:02:54]} 9. Be2 {[%clk 0:02:56]}  dxc4 {[%clk 0:02:53]} 10. Bxc4 {[%clk 0:02:56]}  Bg7 {[%clk 0:02:54]} 11. Ne4 {[%clk 0:02:55]}  Qe7 {[%clk 0:02:54]} 12. O-O {[%clk 0:02:54]}  O-O {[%clk 0:02:54]} 13. Rab1 {[%clk 0:02:55]}  e5 {[%clk 0:02:49]} 14. d5 {[%clk 0:02:53]}  cxd5 {[%clk 0:02:47]} 15. Bxd5 {[%clk 0:02:54]}  Nb6 {[%clk 0:02:48]} 16. Nc3 {[%clk 0:02:40]}  Rd8 {[%clk 0:02:45]} 17. e4 {[%clk 0:02:36]}  Be6 {[%clk 0:02:41]} 18. Bxe6 {[%clk 0:02:30]}  Qxe6 {[%clk 0:02:40]} 19. Rfd1 {[%clk 0:02:27]}  Bf6 {[%clk 0:02:35]} 20. Nd2 {[%clk 0:02:24]}  Rd7 {[%clk 0:02:32]} 21. Nb3 {[%clk 0:02:22]}  Be7 {[%clk 0:02:30]} 22. Rxd7 {[%clk 0:02:18]}  Qxd7 {[%clk 0:02:29]} 23. Rd1 {[%clk 0:02:18]}  Qe6 {[%clk 0:02:29]} 24. Na5 {[%clk 0:01:42]}  Nc4 {[%clk 0:01:54]} 25. Nxc4 {[%clk 0:01:24]}  Qxc4 {[%clk 0:01:55]} 26. Qd3 {[%clk 0:01:10]}  Qxd3 {[%clk 0:01:50]} 27. Rxd3 {[%clk 0:01:11]}  Rd8 {[%clk 0:01:50]} 28. Nd5 {[%clk 0:01:10]}  Bc5 {[%clk 0:01:50]} 29. Nf6+ {[%clk 0:01:09]}  Kg7 {[%clk 0:01:45]} 30. Nh5+ {[%clk 0:01:07]}  gxh5 {[%clk 0:01:43]} 31. Rxd8 {[%clk 0:01:07]}  Bd4 {[%clk 0:01:42]} 32. b3 {[%clk 0:01:06]}  a5 {[%clk 0:01:41]} 33. Kf1 {[%clk 0:01:04]}  Kf6 {[%clk 0:01:39]} 34. Rd6+ {[%clk 0:01:03]}  Kg5 {[%clk 0:01:37]} 35. Ke2 {[%clk 0:01:00]}  b6 {[%clk 0:01:37]} 36. g3 {[%clk 0:00:56]}  Bc5 {[%clk 0:01:30]} 37. Rc6 {[%clk 0:00:53]}  f6 {[%clk 0:01:26]} 38. h4+ {[%clk 0:00:49]}  Kg6 {[%clk 0:01:14]} 39. Rxc5 {[%clk 0:00:49]}  bxc5 {[%clk 0:01:13]} 40. Kd3 {[%clk 0:00:49]}  f5 {[%clk 0:01:12]} 41. f3 {[%clk 0:00:48]}  Kf6 {[%clk 0:01:03]} 42. Kc4 {[%clk 0:00:48]}  f4 {[%clk 0:00:48]} 43. gxf4 {[%clk 0:00:48]}  exf4 {[%clk 0:00:49]} 44. Kxc5 {[%clk 0:00:48]}  Ke5 {[%clk 0:00:49]} 45. a3 {[%clk 0:00:46]}  Ke6 {[%clk 0:00:45]} 46. b4 {[%clk 0:00:46]}  axb4 {[%clk 0:00:45]} 47. axb4 {[%clk 0:00:47]}  Kd7 {[%clk 0:00:45]} 48. b5 {[%clk 0:00:47]}  Kc7 {[%clk 0:00:44]} 49. e5 {[%clk 0:00:47]}  Kd7 {[%clk 0:00:42]} 50. b6 {[%clk 0:00:47]}  Kc8 {[%clk 0:00:42]} 51. e6 {[%clk 0:00:46]}  Kb7 {[%clk 0:00:42]} 52. e7 {[%clk 0:00:46]}  Ka6 {[%clk 0:00:40]} 53. e8=Q {[%clk 0:00:45]}  Kb7 {[%clk 0:00:41]} 54. Qc6+ {[%clk 0:00:40]}  Ka6 {[%clk 0:00:39]} 55. Qa8# {[%clk 0:00:40]} 1-0


[Site "https://www.chess.com"]

[Event "Titled Tuesday Blitz October 11 Early 2022"]
[White "Makhnev, Denis"]
[Black "Nakamura, Hikaru"]
[WhiteFideId "13707647"]
[BlackFideId "2016192"]
[WhiteElo "2486"]
[BlackElo "2909"]
[Result "0-1"]
[Round "07"]
[TimeControl "180+1"]
[Date "2022.10.11"]
[WhiteClock "0:00:01"]
[BlackClock "0:00:05"]

1. d4 {[%clk 0:03:00]}  f5 {[%clk 0:02:57]} 2. g3 {[%clk 0:03:00]}  Nf6 {[%clk 0:02:56]} 3. Bg2 {[%clk 0:03:01]}  g6 {[%clk 0:02:56]} 4. Nh3 {[%clk 0:03:00]}  d6 {[%clk 0:02:46]} 5. d5 {[%clk 0:03:01]}  c6 {[%clk 0:02:43]} 6. Nf4 {[%clk 0:03:00]}  cxd5 {[%clk 0:02:32]} 7. Nxd5 {[%clk 0:03:00]}  Nxd5 {[%clk 0:02:31]} 8. Bxd5 {[%clk 0:03:00]}  Bg7 {[%clk 0:02:29]} 9. O-O {[%clk 0:03:01]}  Nd7 {[%clk 0:02:28]} 10. Nc3 {[%clk 0:02:57]}  Nb6 {[%clk 0:02:21]} 11. Bg2 {[%clk 0:02:52]}  O-O {[%clk 0:02:19]} 12. Nd5 {[%clk 0:02:52]}  Nxd5 {[%clk 0:02:01]} 13. Qxd5+ {[%clk 0:02:49]}  e6 {[%clk 0:02:02]} 14. Qb3 {[%clk 0:02:49]}  d5 {[%clk 0:01:49]} 15. Rd1 {[%clk 0:02:28]}  Qb6 {[%clk 0:01:36]} 16. c4 {[%clk 0:02:27]}  d4 {[%clk 0:01:32]} 17. e3 {[%clk 0:02:21]}  dxe3 {[%clk 0:00:55]} 18. Bxe3 {[%clk 0:02:18]}  Qxb3 {[%clk 0:00:54]} 19. axb3 {[%clk 0:02:19]}  Bxb2 {[%clk 0:00:55]} 20. Rxa7 {[%clk 0:02:13]}  Rxa7 {[%clk 0:00:55]} 21. Bxa7 {[%clk 0:02:14]}  Ba3 {[%clk 0:00:51]} 22. c5 {[%clk 0:01:58]}  e5 {[%clk 0:00:45]} 23. Rd6 {[%clk 0:01:39]}  Kg7 {[%clk 0:00:39]} 24. Bd5 {[%clk 0:01:35]}  Rf6 {[%clk 0:00:35]} 25. Rd8 {[%clk 0:01:10]}  Rf8 {[%clk 0:00:35]} 26. Rxf8 {[%clk 0:01:11]}  Kxf8 {[%clk 0:00:35]} 27. Kf1 {[%clk 0:01:11]}  e4 {[%clk 0:00:32]} 28. Ke2 {[%clk 0:01:11]}  Ke7 {[%clk 0:00:32]} 29. f3 {[%clk 0:01:11]}  exf3+ {[%clk 0:00:31]} 30. Bxf3 {[%clk 0:01:08]}  Be6 {[%clk 0:00:30]} 31. Bxb7 {[%clk 0:01:06]}  Bxb3 {[%clk 0:00:29]} 32. Kd3 {[%clk 0:01:06]}  Be6 {[%clk 0:00:27]} 33. Bb6 {[%clk 0:01:05]}  g5 {[%clk 0:00:25]} 34. c6 {[%clk 0:00:53]}  Bd5 {[%clk 0:00:24]} 35. Kd4 {[%clk 0:00:54]}  Bh1 {[%clk 0:00:22]} 36. Bc5+ {[%clk 0:00:54]}  Bxc5+ {[%clk 0:00:22]} 37. Kxc5 {[%clk 0:00:54]}  f4 {[%clk 0:00:22]} 38. g4 {[%clk 0:00:54]}  Bf3 {[%clk 0:00:20]} 39. h3 {[%clk 0:00:32]}  Bg2 {[%clk 0:00:19]} 40. Kb6 {[%clk 0:00:23]}  Bxh3 {[%clk 0:00:19]} 41. Bc8 {[%clk 0:00:24]}  f3 {[%clk 0:00:18]} 42. c7 {[%clk 0:00:15]}  f2 {[%clk 0:00:17]} 43. Bf5 {[%clk 0:00:15]}  f1=Q {[%clk 0:00:17]} 44. c8=Q {[%clk 0:00:16]}  Qf2+ {[%clk 0:00:16]} 45. Ka5 {[%clk 0:00:16]}  Qd2+ {[%clk 0:00:16]} 46. Kb6 {[%clk 0:00:16]}  Qd6+ {[%clk 0:00:16]} 47. Kb5 {[%clk 0:00:15]}  Bf1+ {[%clk 0:00:14]} 48. Ka4 {[%clk 0:00:15]}  Bg2 {[%clk 0:00:06]} 49. Qc3 {[%clk 0:00:11]}  Qc6+ {[%clk 0:00:05]} 50. Kb4 {[%clk 0:00:10]}  Qxc3+ {[%clk 0:00:03]} 51. Kxc3 {[%clk 0:00:11]}  h6 {[%clk 0:00:03]} 52. Kd4 {[%clk 0:00:11]}  Kf6 {[%clk 0:00:04]} 53. Ke3 {[%clk 0:00:12]}  h5 {[%clk 0:00:04]} 54. Kf2 {[%clk 0:00:09]}  Bc6 {[%clk 0:00:03]} 55. Kg3 {[%clk 0:00:03]}  h4+ {[%clk 0:00:03]} 56. Kf2 {[%clk 0:00:03]}  Ke5 {[%clk 0:00:04]} 57. Ke3 {[%clk 0:00:01]}  h3 {[%clk 0:00:04]} 58. Kf2 {[%clk 0:00:01]}  h2 {[%clk 0:00:05]} 0-1


[Site "https://www.chess.com"]

[Event "Titled Tuesday Blitz October 11 Early 2022"]
[White "Mamedov, Rauf"]
[Black "Lazavik, Denis"]
[WhiteFideId "13401653"]
[BlackFideId "13515110"]
[WhiteElo "2650"]
[BlackElo "2437"]
[Result "0-1"]
[Round "07"]
[TimeControl "180+1"]
[Date "2022.10.11"]
[WhiteClock "0:00:25"]
[BlackClock "0:01:21"]

1. e4 {[%clk 0:02:59]}  e5 {[%clk 0:02:59]} 2. Nf3 {[%clk 0:02:59]}  Nc6 {[%clk 0:03:00]} 3. d4 {[%clk 0:03:00]}  exd4 {[%clk 0:02:59]} 4. Bc4 {[%clk 0:03:00]}  Nf6 {[%clk 0:02:59]} 5. e5 {[%clk 0:03:00]}  d5 {[%clk 0:02:59]} 6. Bb5 {[%clk 0:03:01]}  Ne4 {[%clk 0:02:59]} 7. Nxd4 {[%clk 0:03:00]}  Bd7 {[%clk 0:02:59]} 8. Bxc6 {[%clk 0:03:00]}  bxc6 {[%clk 0:02:59]} 9. O-O {[%clk 0:02:59]}  Bc5 {[%clk 0:02:58]} 10. Be3 {[%clk 0:02:56]}  Qe7 {[%clk 0:02:56]} 11. f4 {[%clk 0:02:47]}  Bb6 {[%clk 0:02:45]} 12. Nc3 {[%clk 0:02:45]}  Nxc3 {[%clk 0:02:34]} 13. bxc3 {[%clk 0:02:44]}  O-O {[%clk 0:02:34]} 14. Qd2 {[%clk 0:02:39]}  f6 {[%clk 0:02:30]} 15. exf6 {[%clk 0:02:20]}  Qxf6 {[%clk 0:02:29]} 16. a4 {[%clk 0:02:21]}  a5 {[%clk 0:02:24]} 17. Nf3 {[%clk 0:02:18]}  Qxf4 {[%clk 0:02:08]} 18. Nd4 {[%clk 0:00:48]}  Qe4 {[%clk 0:02:06]} 19. Rfe1 {[%clk 0:00:47]}  Qg6 {[%clk 0:01:59]} 20. Rab1 {[%clk 0:00:42]}  Rae8 {[%clk 0:01:56]} 21. Bf2 {[%clk 0:00:38]}  h6 {[%clk 0:01:49]} 22. Rxe8 {[%clk 0:00:37]}  Rxe8 {[%clk 0:01:32]} 23. Nf3 {[%clk 0:00:37]}  Bg4 {[%clk 0:01:25]} 24. Nh4 {[%clk 0:00:27]}  Qf6 {[%clk 0:01:25]} 25. h3 {[%clk 0:00:25]}  Re2 {[%clk 0:01:21]} 0-1


[Site "https://www.chess.com"]